[Event "Early-Titled-Tuesday-Blitz-September-05-2023"]
[Site "Chess.com"]
[Date "2023.09.05"]
[Round "11"]
[White "FormerProdigy"]
[Black "GMWSO"]
[Result "0-1"]
[WhiteElo "2900"]
[BlackElo "3054"]
[TimeControl "180+1"]
[EndTime "10:05:03 PDT"]
[Termination "GMWSO won by checkmate"]

1. d4 {[%clk 0:03:00.9]} 1... d5 {[%clk 0:02:56.4]} 2. c4 {[%clk 0:03:01.3]}
2... c6 {[%clk 0:02:56.9]} 3. Nf3 {[%clk 0:03:00.5]} 3... Nf6 {[%clk 0:02:57.5]}
4. e3 {[%clk 0:03:00.5]} 4... Bf5 {[%clk 0:02:56.9]} 5. Nc3 {[%clk 0:02:59.4]}
5... e6 {[%clk 0:02:57.3]} 6. Nh4 {[%clk 0:02:50.6]} 6... Be4 {[%clk 0:02:57.6]}
7. f3 {[%clk 0:02:50.2]} 7... Bg6 {[%clk 0:02:58.1]} 8. Qb3 {[%clk 0:02:50.8]}
8... Qc7 {[%clk 0:02:58]} 9. Bd2 {[%clk 0:02:48]} 9... Be7 {[%clk 0:02:56.9]}
10. Nxg6 {[%clk 0:02:26]} 10... hxg6 {[%clk 0:02:57.8]} 11. cxd5 {[%clk
0:02:26.4]} 11... cxd5 {[%clk 0:02:43.7]} 12. O-O-O {[%clk 0:02:27]} 12... Nc6
{[%clk 0:02:40.3]} 13. Kb1 {[%clk 0:02:27.4]} 13... a6 {[%clk 0:02:39.5]} 14.
Rc1 {[%clk 0:02:27]} 14... Rc8 {[%clk 0:02:37.3]} 15. Be2 {[%clk 0:02:11]} 15...
Nd7 {[%clk 0:02:32.6]} 16. Be1 {[%clk 0:01:29.3]} 16... b5 {[%clk 0:02:22]} 17.
Bg3 {[%clk 0:01:08]} 17... Qd8 {[%clk 0:02:12.5]} 18. Qd1 {[%clk 0:01:06.1]}
18... Nb6 {[%clk 0:02:02.3]} 19. a4 {[%clk 0:00:48.4]} 19... O-O {[%clk
0:01:32.2]} 20. axb5 {[%clk 0:00:48.7]} 20... axb5 {[%clk 0:01:33.1]} 21. Nxb5
{[%clk 0:00:49.4]} 21... Qd7 {[%clk 0:01:32.2]} 22. Qd2 {[%clk 0:00:41]} 22...
Ra8 {[%clk 0:01:16.2]} 23. Nc7 {[%clk 0:00:38.1]} 23... Ra7 {[%clk 0:01:09]} 24.
Bb5 {[%clk 0:00:36.1]} 24... Nc4 {[%clk 0:01:09.4]} 25. Bxc4 {[%clk 0:00:36.3]}
25... dxc4 {[%clk 0:01:08.8]} 26. Rxc4 {[%clk 0:00:37.2]} 26... Na5 {[%clk
0:01:02.3]} 27. Rhc1 {[%clk 0:00:28.2]} 27... Nb3 {[%clk 0:01:00.1]} 28. Qd3
{[%clk 0:00:18.5]} 28... Ra1+ {[%clk 0:00:55]} 29. Kc2 {[%clk 0:00:19]} 29...
Nxc1 {[%clk 0:00:45.1]} 30. Qe4 {[%clk 0:00:11.7]} 30... Na2 {[%clk 0:00:43.1]}
31. Kd2 {[%clk 0:00:07.3]} 31... Nb4 {[%clk 0:00:42.4]} 32. Qb7 {[%clk
0:00:05.5]} 32... Nd5 {[%clk 0:00:41.3]} 33. Ke2 {[%clk 0:00:02.7]} 33... Nxc7
{[%clk 0:00:38.1]} 34. Rxc7 {[%clk 0:00:03]} 34... Qa4 {[%clk 0:00:38.6]} 35.
Rxe7 {[%clk 0:00:02.1]} 35... Qc2# {[%clk 0:00:36.9]} 0-1

[Event "Early-Titled-Tuesday-Blitz-September-05-2023"]
[Site "Chess.com"]
[Date "2023.09.05"]
[Round "11"]
[White "rachidhuilda"]
[Black "Boxerandchessplayer"]
[Result "0-1"]
[WhiteElo "2285"]
[BlackElo "2104"]
[TimeControl "180+1"]
[EndTime "10:05:05 PDT"]
[Termination "Boxerandchessplayer won on time"]

1. d4 {[%clk 0:03:00.9]} 1... Nf6 {[%clk 0:02:56.6]} 2. Bg5 {[%clk 0:02:59.8]}
2... Ne4 {[%clk 0:02:44.5]} 3. Bf4 {[%clk 0:02:58.8]} 3... d5 {[%clk 0:02:42.3]}
4. e3 {[%clk 0:02:57.8]} 4... Bf5 {[%clk 0:02:38.6]} 5. Bd3 {[%clk 0:02:28.4]}
5... e6 {[%clk 0:02:23]} 6. g4 {[%clk 0:02:22.9]} 6... Qh4 {[%clk 0:02:04.7]} 7.
Bxe4 {[%clk 0:01:44.5]} 7... Bxe4 {[%clk 0:01:57.6]} 8. Bg3 {[%clk 0:01:44.2]}
8... Qf6 {[%clk 0:01:49.7]} 9. f3 {[%clk 0:01:42.8]} 9... Bg6 {[%clk 0:01:47.6]}
10. Bxc7 {[%clk 0:01:23.8]} 10... Na6 {[%clk 0:01:41.2]} 11. Be5 {[%clk
0:01:22.3]} 11... Qh4+ {[%clk 0:01:38]} 12. Bg3 {[%clk 0:01:21.3]} 12... Qf6
{[%clk 0:01:38.6]} 13. Qe2 {[%clk 0:01:15.8]} 13... Bb4+ {[%clk 0:01:18.4]} 14.
c3 {[%clk 0:01:15.3]} 14... Qe7 {[%clk 0:00:44.7]} 15. cxb4 {[%clk 0:01:05.3]}
15... Nxb4 {[%clk 0:00:44.6]} 16. Qb5+ {[%clk 0:00:46.4]} 16... Kf8 {[%clk
0:00:38.1]} 17. Na3 {[%clk 0:00:46.6]} 17... Rc8 {[%clk 0:00:31.2]} 18. Ne2
{[%clk 0:00:33.2]} 18... a6 {[%clk 0:00:24.1]} 19. Qa4 {[%clk 0:00:32.3]} 19...
Nd3+ {[%clk 0:00:22.7]} 20. Kf1 {[%clk 0:00:27.6]} 20... Nxb2 {[%clk 0:00:22.8]}
21. Qb3 {[%clk 0:00:22]} 21... Nd3 {[%clk 0:00:19.9]} 22. Kg2 {[%clk 0:00:13.7]}
22... b5 {[%clk 0:00:18.6]} 23. h4 {[%clk 0:00:04.6]} 23... h5 {[%clk
0:00:16.8]} 24. Rad1 {[%clk 0:00:01.2]} 24... hxg4 {[%clk 0:00:14.6]} 0-1

[Event "Early-Titled-Tuesday-Blitz-September-05-2023"]
[Site "Chess.com"]
[Date "2023.09.05"]
[Round "11"]
[White "KNVB"]
[Black "NovoselovRoman"]
[Result "0-1"]
[WhiteElo "2758"]
[BlackElo "2592"]
[TimeControl "180+1"]
[EndTime "10:05:07 PDT"]
[Termination "NovoselovRoman won on time"]

1. d4 {[%clk 0:03:00.9]} 1... d5 {[%clk 0:02:59.9]} 2. Bf4 {[%clk 0:03:01.1]}
2... e6 {[%clk 0:02:59.4]} 3. e3 {[%clk 0:03:00.9]} 3... Bd6 {[%clk 0:02:57.7]}
4. Nf3 {[%clk 0:03:01.2]} 4... Ne7 {[%clk 0:02:57.7]} 5. Nbd2 {[%clk 0:03:01.6]}
5... c5 {[%clk 0:02:56]} 6. c3 {[%clk 0:03:01.9]} 6... Nbc6 {[%clk 0:02:55.6]}
7. dxc5 {[%clk 0:02:11.7]} 7... Bxc5 {[%clk 0:02:49.5]} 8. Bd3 {[%clk
0:02:12.2]} 8... f6 {[%clk 0:02:44.7]} 9. e4 {[%clk 0:01:23.9]} 9... e5 {[%clk
0:02:42.6]} 10. Bg3 {[%clk 0:01:24]} 10... Bg4 {[%clk 0:02:32.2]} 11. h3 {[%clk
0:01:18]} 11... Bh5 {[%clk 0:02:29.2]} 12. exd5 {[%clk 0:00:49]} 12... Nxd5
{[%clk 0:02:20.8]} 13. Qc2 {[%clk 0:00:48.3]} 13... Nce7 {[%clk 0:01:50.5]} 14.
Ne4 {[%clk 0:00:15.2]} 14... Qc7 {[%clk 0:01:50.6]} 15. Bb5+ {[%clk 0:00:14.7]}
15... Kf8 {[%clk 0:01:49.5]} 16. O-O {[%clk 0:00:08.4]} 16... Bxf3 {[%clk
0:01:43.6]} 17. gxf3 {[%clk 0:00:09.3]} 17... Bb6 {[%clk 0:01:44]} 18. Rad1
{[%clk 0:00:08]} 18... Rd8 {[%clk 0:01:34.9]} 19. Ba4 {[%clk 0:00:05.9]} 19...
Nf5 {[%clk 0:01:31]} 20. Kh2 {[%clk 0:00:02]} 20... Nxg3 {[%clk 0:01:30.2]} 21.
fxg3 {[%clk 0:00:02.1]} 21... Ne3 {[%clk 0:01:29.9]} 22. Rxd8+ {[%clk
0:00:02.8]} 22... Qxd8 {[%clk 0:01:30.2]} 23. Qe2 {[%clk 0:00:02.5]} 23... Nxf1+
{[%clk 0:01:30.2]} 24. Qxf1 {[%clk 0:00:03.4]} 24... g6 {[%clk 0:01:24]} 25. h4
{[%clk 0:00:03.2]} 25... Kg7 {[%clk 0:01:23.4]} 26. Bb3 {[%clk 0:00:03.3]} 26...
Qd7 {[%clk 0:01:08.2]} 27. a4 {[%clk 0:00:02.7]} 27... Rd8 {[%clk 0:01:06.7]}
28. Qc4 {[%clk 0:00:02.6]} 28... Rc8 {[%clk 0:00:59.6]} 29. Qe2 {[%clk
0:00:02.2]} 29... Rd8 {[%clk 0:00:51.9]} 30. Qc4 {[%clk 0:00:02.2]} 30... Rc8
{[%clk 0:00:47.2]} 31. Qe2 {[%clk 0:00:02.4]} 31... h6 {[%clk 0:00:47.8]} 32.
Kg2 {[%clk 0:00:02.2]} 32... f5 {[%clk 0:00:48]} 33. Nd2 {[%clk 0:00:02]} 33...
Re8 {[%clk 0:00:44.6]} 34. Nc4 {[%clk 0:00:01.4]} 34... Bc7 {[%clk 0:00:41.6]}
35. Ne3 {[%clk 0:00:01.3]} 35... e4 {[%clk 0:00:40.9]} 36. f4 {[%clk 0:00:01.8]}
36... Qd3 {[%clk 0:00:40.2]} 37. Qe1 {[%clk 0:00:01.2]} 37... Rd8 {[%clk
0:00:39.5]} 0-1

[Event "Early-Titled-Tuesday-Blitz-September-05-2023"]
[Site "Chess.com"]
[Date "2023.09.05"]
[Round "11"]
[White "Bugcrusher"]
[Black "Kurai"]
[Result "1/2-1/2"]
[WhiteElo "2372"]
[BlackElo "2706"]
[TimeControl "180+1"]
[EndTime "10:05:13 PDT"]
[Termination "Game drawn by repetition"]

1. d4 {[%clk 0:03:00.9]} 1... d5 {[%clk 0:03:00.2]} 2. Bf4 {[%clk 0:03:00.1]}
2... Nf6 {[%clk 0:02:59]} 3. e3 {[%clk 0:03:00]} 3... e6 {[%clk 0:02:59.7]} 4.
Nf3 {[%clk 0:02:59.7]} 4... Bd6 {[%clk 0:03:00.3]} 5. Nbd2 {[%clk 0:02:57.2]}
5... O-O {[%clk 0:03:00.6]} 6. Bd3 {[%clk 0:02:56.5]} 6... b6 {[%clk 0:03:01.1]}
7. Qe2 {[%clk 0:02:53.4]} 7... c5 {[%clk 0:03:00.5]} 8. c3 {[%clk 0:02:53.1]}
8... Nc6 {[%clk 0:03:00.9]} 9. Ne5 {[%clk 0:02:45.8]} 9... Qc7 {[%clk
0:03:00.1]} 10. Nxc6 {[%clk 0:02:40.3]} 10... Qxc6 {[%clk 0:03:01]} 11. Nf3
{[%clk 0:02:37.7]} 11... Bxf4 {[%clk 0:02:46.5]} 12. exf4 {[%clk 0:02:37.4]}
12... cxd4 {[%clk 0:02:46.8]} 13. cxd4 {[%clk 0:02:36]} 13... Qd6 {[%clk
0:02:46.1]} 14. Ne5 {[%clk 0:02:33.2]} 14... Qb4+ {[%clk 0:02:45.4]} 15. Qd2
{[%clk 0:02:33.5]} 15... Qxd2+ {[%clk 0:02:45.3]} 16. Kxd2 {[%clk 0:02:33.4]}
16... Bd7 {[%clk 0:02:45.8]} 17. f3 {[%clk 0:02:32.7]} 17... Rfd8 {[%clk
0:02:21.1]} 18. Rac1 {[%clk 0:02:31.3]} 18... Ne8 {[%clk 0:02:21.2]} 19. Rc3
{[%clk 0:02:16.5]} 19... f6 {[%clk 0:02:19.8]} 20. Nxd7 {[%clk 0:02:16.7]} 20...
Rxd7 {[%clk 0:02:20.7]} 21. Rhc1 {[%clk 0:02:16.7]} 21... Kf8 {[%clk 0:02:18.5]}
22. Bxh7 {[%clk 0:02:15.1]} 22... g5 {[%clk 0:02:18.5]} 23. Bg6 {[%clk
0:02:09.9]} 23... gxf4 {[%clk 0:02:18.6]} 24. Rc8 {[%clk 0:02:09.8]} 24... Rd8
{[%clk 0:02:14.5]} 25. Rxa8 {[%clk 0:02:05]} 25... Rxa8 {[%clk 0:02:14.3]} 26.
Bxe8 {[%clk 0:02:05.3]} 26... Rxe8 {[%clk 0:02:01.8]} 27. Rc7 {[%clk 0:02:05.8]}
27... Re7 {[%clk 0:01:54.4]} 28. Rxe7 {[%clk 0:01:59.4]} 28... Kxe7 {[%clk
0:01:55.3]} 29. Kc3 {[%clk 0:01:57.7]} 29... e5 {[%clk 0:01:52.7]} 30. Kd3
{[%clk 0:01:52.3]} 30... Ke6 {[%clk 0:01:51.6]} 31. Kc3 {[%clk 0:01:37.9]} 31...
Kf5 {[%clk 0:01:49.8]} 32. Kd3 {[%clk 0:01:38]} 32... b5 {[%clk 0:01:40.2]} 33.
b4 {[%clk 0:01:37.4]} 33... Kg5 {[%clk 0:01:26]} 34. Kc3 {[%clk 0:01:35.8]}
34... Kg6 {[%clk 0:01:23.4]} 35. Kd3 {[%clk 0:01:35.9]} 35... Kf5 {[%clk
0:01:23.4]} 36. Kc3 {[%clk 0:01:36.1]} 36... e4 {[%clk 0:01:08.3]} 37. Kd2
{[%clk 0:01:28.6]} 37... e3+ {[%clk 0:00:16.8]} 38. Ke2 {[%clk 0:01:27.6]} 38...
Kg5 {[%clk 0:00:16.4]} 39. g3 {[%clk 0:01:25.4]} 39... f5 {[%clk 0:00:05.9]} 40.
Kd3 {[%clk 0:01:09.6]} 40... Kh5 {[%clk 0:00:02.5]} 41. Ke2 {[%clk 0:01:07.6]}
41... Kg5 {[%clk 0:00:02.7]} 42. Kd3 {[%clk 0:00:45.1]} 42... Kh5 {[%clk
0:00:02.9]} 43. Ke2 {[%clk 0:00:45.2]} 43... Kg5 {[%clk 0:00:03.4]} 1/2-1/2

[Event "Early-Titled-Tuesday-Blitz-September-05-2023"]
[Site "Chess.com"]
[Date "2023.09.05"]
[Round "11"]
[White "infinitegiantkiller"]
[Black "angryspacevoid"]
[Result "1/2-1/2"]
[WhiteElo "2490"]
[BlackElo "2601"]
[TimeControl "180+1"]
[EndTime "10:05:14 PDT"]
[Termination "Game drawn by repetition"]

1. Nf3 {[%clk 0:03:00.9]} 1... Nc6 {[%clk 0:02:57.2]} 2. g3 {[%clk 0:03:01.8]}
2... e5 {[%clk 0:02:57.2]} 3. Bg2 {[%clk 0:03:02.7]} 3... e4 {[%clk 0:02:57.2]}
4. Ng1 {[%clk 0:03:02.4]} 4... Nf6 {[%clk 0:02:55.9]} 5. d3 {[%clk 0:03:01.9]}
5... exd3 {[%clk 0:02:56]} 6. cxd3 {[%clk 0:03:02.8]} 6... d5 {[%clk 0:02:55.8]}
7. Nf3 {[%clk 0:03:02.5]} 7... Bf5 {[%clk 0:02:47.9]} 8. O-O {[%clk 0:03:02.5]}
8... Qd7 {[%clk 0:02:47.7]} 9. d4 {[%clk 0:03:02.7]} 9... Bh3 {[%clk 0:02:45.9]}
10. Ne5 {[%clk 0:03:02.1]} 10... Nxe5 {[%clk 0:02:40.4]} 11. dxe5 {[%clk
0:03:03]} 11... Bxg2 {[%clk 0:02:38.1]} 12. Kxg2 {[%clk 0:03:03.2]} 12... Ne4
{[%clk 0:02:37]} 13. Nc3 {[%clk 0:03:00.9]} 13... Nxc3 {[%clk 0:02:35.8]} 14.
bxc3 {[%clk 0:03:01.8]} 14... O-O-O {[%clk 0:02:34.8]} 15. Qb3 {[%clk
0:03:00.6]} 15... Qc6 {[%clk 0:02:27.1]} 16. Kg1 {[%clk 0:02:57.9]} 16... h5
{[%clk 0:02:25.7]} 17. Be3 {[%clk 0:02:48.9]} 17... Bc5 {[%clk 0:02:09.2]} 18.
Bxc5 {[%clk 0:02:46.2]} 18... Qxc5 {[%clk 0:02:10.1]} 19. Rab1 {[%clk
0:02:46.4]} 19... Qc6 {[%clk 0:02:08.4]} 20. Qb5 {[%clk 0:02:38]} 20... Qxb5
{[%clk 0:01:58.6]} 21. Rxb5 {[%clk 0:02:38.9]} 21... h4 {[%clk 0:01:52.9]} 22.
Rb4 {[%clk 0:02:35.4]} 22... hxg3 {[%clk 0:01:51.6]} 23. hxg3 {[%clk 0:02:36.2]}
23... Rh5 {[%clk 0:01:51.4]} 24. f4 {[%clk 0:02:31.2]} 24... Rdh8 {[%clk
0:01:50.1]} 25. Kg2 {[%clk 0:02:31.6]} 25... g5 {[%clk 0:01:43.8]} 26. e3 {[%clk
0:02:30.1]} 26... g4 {[%clk 0:01:39.3]} 27. Kf2 {[%clk 0:02:16.6]} 27... Rh2+
{[%clk 0:01:37.3]} 28. Ke1 {[%clk 0:02:16.3]} 28... Rxa2 {[%clk 0:01:37.2]} 29.
f5 {[%clk 0:02:15.4]} 29... Rhh2 {[%clk 0:01:36.9]} 30. Rb1 {[%clk 0:02:15]}
30... Rhe2+ {[%clk 0:01:34]} 31. Kd1 {[%clk 0:02:15]} 31... Rxe3 {[%clk
0:01:34.6]} 32. e6 {[%clk 0:02:13.7]} 32... f6 {[%clk 0:01:20.2]} 33. Rh1 {[%clk
0:02:09.5]} 33... b6 {[%clk 0:01:18.7]} 34. Kc1 {[%clk 0:01:58.8]} 34... Rxc3+
{[%clk 0:01:16.8]} 35. Kd1 {[%clk 0:01:58.9]} 35... Rxg3 {[%clk 0:01:05.9]} 36.
Kc1 {[%clk 0:01:59.2]} 36... Re3 {[%clk 0:01:03.4]} 37. Rb2 {[%clk 0:01:59.4]}
37... Ra1+ {[%clk 0:00:59.7]} 38. Rb1 {[%clk 0:01:59.7]} 38... Rxb1+ {[%clk
0:01:00.1]} 39. Kxb1 {[%clk 0:02:00.6]} 39... Re5 {[%clk 0:00:57]} 40. Rh8+
{[%clk 0:01:58.6]} 40... Kb7 {[%clk 0:00:56.9]} 41. Rg8 {[%clk 0:01:52.8]} 41...
Rxf5 {[%clk 0:00:56.4]} 42. e7 {[%clk 0:01:52.8]} 42... Re5 {[%clk 0:00:54]} 43.
e8=Q {[%clk 0:01:52.6]} 43... Rxe8 {[%clk 0:00:52.4]} 44. Rxe8 {[%clk
0:01:53.5]} 44... c5 {[%clk 0:00:22.5]} 45. Re7+ {[%clk 0:01:47.6]} 45... Kc6
{[%clk 0:00:17.7]} 46. Rf7 {[%clk 0:01:42.3]} 46... a5 {[%clk 0:00:16.4]} 47.
Rxf6+ {[%clk 0:01:42.9]} 47... Kb5 {[%clk 0:00:16.6]} 48. Rg6 {[%clk 0:01:43.8]}
48... d4 {[%clk 0:00:15.3]} 49. Kc2 {[%clk 0:01:43.2]} 49... a4 {[%clk
0:00:13.1]} 50. Kb2 {[%clk 0:01:41.9]} 50... Ka5 {[%clk 0:00:12]} 51. Rxg4
{[%clk 0:01:39.7]} 51... Kb4 {[%clk 0:00:09.4]} 52. Rh4 {[%clk 0:01:34.5]} 52...
b5 {[%clk 0:00:09.8]} 53. Rg4 {[%clk 0:01:32]} 53... Kc4 {[%clk 0:00:10.1]} 54.
Ka3 {[%clk 0:01:32.3]} 54... Kc3 {[%clk 0:00:07.4]} 55. Rg5 {[%clk 0:01:30.4]}
55... Kc4 {[%clk 0:00:03.2]} 56. Rg4 {[%clk 0:01:29.6]} 56... Kc3 {[%clk
0:00:02.7]} 57. Rg5 {[%clk 0:01:29.4]} 57... Kc4 {[%clk 0:00:03.2]} 58. Rg4
{[%clk 0:01:13.1]} 1/2-1/2

[Event "Early-Titled-Tuesday-Blitz-September-05-2023"]
[Site "Chess.com"]
[Date "2023.09.05"]
[Round "11"]
[White "the-gambler"]
[Black "Qvalda"]
[Result "1-0"]
[WhiteElo "2509"]
[BlackElo "2381"]
[TimeControl "180+1"]
[EndTime "10:05:15 PDT"]
[Termination "the-gambler won by resignation"]

1. g3 {[%clk 0:03:00.9]} 1... d5 {[%clk 0:02:57.1]} 2. Bg2 {[%clk 0:03:00.8]}
2... e5 {[%clk 0:02:57.4]} 3. Nf3 {[%clk 0:03:00.7]} 3... Nd7 {[%clk 0:02:56.8]}
4. d3 {[%clk 0:02:57.8]} 4... Bd6 {[%clk 0:02:55.5]} 5. O-O {[%clk 0:02:58]}
5... c6 {[%clk 0:02:56]} 6. e4 {[%clk 0:02:57.2]} 6... Ngf6 {[%clk 0:02:55.5]}
7. Nbd2 {[%clk 0:02:53.2]} 7... O-O {[%clk 0:02:54.9]} 8. a4 {[%clk 0:02:49]}
8... dxe4 {[%clk 0:02:50.4]} 9. dxe4 {[%clk 0:02:48.3]} 9... Nc5 {[%clk
0:02:49]} 10. Qe1 {[%clk 0:02:47.9]} 10... a5 {[%clk 0:02:47.8]} 11. Nh4 {[%clk
0:02:44.8]} 11... Ne6 {[%clk 0:02:40.8]} 12. Nf5 {[%clk 0:02:39.4]} 12... Bc7
{[%clk 0:02:37.7]} 13. c3 {[%clk 0:02:35.1]} 13... Nc5 {[%clk 0:02:36.9]} 14.
Qe3 {[%clk 0:02:23.9]} 14... b6 {[%clk 0:02:28.1]} 15. b4 {[%clk 0:02:10.5]}
15... axb4 {[%clk 0:02:24.5]} 16. cxb4 {[%clk 0:02:10.4]} 16... Rxa4 {[%clk
0:02:12.3]} 17. Rb1 {[%clk 0:01:36.6]} 17... Ne6 {[%clk 0:02:02]} 18. Nc4 {[%clk
0:01:14.9]} 18... b5 {[%clk 0:01:56.9]} 19. Na5 {[%clk 0:01:10]} 19... Bxa5
{[%clk 0:01:51.1]} 20. bxa5 {[%clk 0:01:09.7]} 20... Rxa5 {[%clk 0:01:42.1]} 21.
Qc3 {[%clk 0:01:08.8]} 21... Qc7 {[%clk 0:01:19.7]} 22. Ba3 {[%clk 0:01:04.9]}
22... Re8 {[%clk 0:01:14.7]} 23. Bd6 {[%clk 0:01:02.2]} 23... Qa7 {[%clk
0:00:38.5]} 24. Bxe5 {[%clk 0:01:01.4]} 24... Ra3 {[%clk 0:00:30.9]} 25. Qxc6
{[%clk 0:00:56.4]} 25... Bd7 {[%clk 0:00:21.1]} 26. Qd6 {[%clk 0:00:55.5]} 26...
Ra6 {[%clk 0:00:18.4]} 27. Qd1 {[%clk 0:00:42.3]} 27... Nf8 {[%clk 0:00:12.5]}
28. Bb2 {[%clk 0:00:34.4]} 28... Bxf5 {[%clk 0:00:11]} 29. exf5 {[%clk
0:00:33.5]} 29... Qd7 {[%clk 0:00:11.1]} 30. Qb3 {[%clk 0:00:28.9]} 30... Rb6
{[%clk 0:00:09]} 31. Rfd1 {[%clk 0:00:23.9]} 31... Qb7 {[%clk 0:00:08.1]} 32.
Bxb7 {[%clk 0:00:22]} 32... Rxb7 {[%clk 0:00:07.9]} 33. Bxf6 {[%clk 0:00:20.8]}
33... gxf6 {[%clk 0:00:07.9]} 34. Qf3 {[%clk 0:00:21.4]} 34... h6 {[%clk
0:00:06.7]} 35. Qxb7 {[%clk 0:00:20.6]} 1-0

[Event "Early-Titled-Tuesday-Blitz-September-05-2023"]
[Site "Chess.com"]
[Date "2023.09.05"]
[Round "11"]
[White "Langua_Chess"]
[Black "alpltl"]
[Result "1-0"]
[WhiteElo "2483"]
[BlackElo "2359"]
[TimeControl "180+1"]
[EndTime "10:05:15 PDT"]
[Termination "Langua_Chess won by resignation"]

1. d4 {[%clk 0:03:00.9]} 1... g6 {[%clk 0:02:57.5]} 2. c4 {[%clk 0:03:01.2]}
2... Bg7 {[%clk 0:02:57.7]} 3. Nc3 {[%clk 0:03:02]} 3... c5 {[%clk 0:02:57.3]}
4. dxc5 {[%clk 0:02:44.7]} 4... Bxc3+ {[%clk 0:02:52.4]} 5. bxc3 {[%clk
0:02:44.4]} 5... Nf6 {[%clk 0:02:53]} 6. Bh6 {[%clk 0:02:35.9]} 6... Qa5 {[%clk
0:02:51.8]} 7. Rc1 {[%clk 0:02:26]} 7... Qxc5 {[%clk 0:02:46.9]} 8. Qd4 {[%clk
0:02:21.9]} 8... Na6 {[%clk 0:02:44.3]} 9. Bg7 {[%clk 0:02:19.2]} 9... Rg8
{[%clk 0:02:36.2]} 10. Bxf6 {[%clk 0:02:19.2]} 10... exf6 {[%clk 0:02:36.4]} 11.
Qxf6 {[%clk 0:02:18.5]} 11... Qxc4 {[%clk 0:02:36.7]} 12. e3 {[%clk 0:02:13.4]}
12... Qe6 {[%clk 0:02:36.4]} 13. Qd4 {[%clk 0:02:06.3]} 13... d5 {[%clk
0:02:32]} 14. Nf3 {[%clk 0:02:01.5]} 14... Bd7 {[%clk 0:02:29.4]} 15. Ng5 {[%clk
0:01:58.4]} 15... Qb6 {[%clk 0:02:07.8]} 16. Nxh7 {[%clk 0:01:57.7]} 16... Qxd4
{[%clk 0:02:06.8]} 17. cxd4 {[%clk 0:01:56.1]} 17... Ke7 {[%clk 0:02:04.7]} 18.
Bxa6 {[%clk 0:01:53.3]} 18... bxa6 {[%clk 0:02:03.5]} 19. Ng5 {[%clk 0:01:53.2]}
19... f6 {[%clk 0:02:03]} 20. Nf3 {[%clk 0:01:52.1]} 20... Bb5 {[%clk
0:02:01.5]} 21. Kd2 {[%clk 0:01:50]} 21... Rgc8 {[%clk 0:02:01.1]} 22. Rxc8
{[%clk 0:01:46.3]} 22... Rxc8 {[%clk 0:02:02]} 23. Rc1 {[%clk 0:01:46.1]} 23...
Rh8 {[%clk 0:02:02]} 24. Rc7+ {[%clk 0:01:44.6]} 24... Kd6 {[%clk 0:02:02.2]}
25. Rxa7 {[%clk 0:01:44.6]} 25... g5 {[%clk 0:02:02.7]} 26. h3 {[%clk 0:01:44]}
26... Bf1 {[%clk 0:02:02]} 27. Ne1 {[%clk 0:01:41.7]} 27... Kc6 {[%clk
0:01:58.5]} 28. Rf7 {[%clk 0:01:40]} 28... Rh6 {[%clk 0:01:57.7]} 29. f3 {[%clk
0:01:18.4]} 29... Kb5 {[%clk 0:01:56.3]} 30. e4 {[%clk 0:01:13.4]} 30... dxe4
{[%clk 0:01:52.9]} 31. fxe4 {[%clk 0:01:13.2]} 31... Kc4 {[%clk 0:01:53.8]} 32.
Ke3 {[%clk 0:01:13.5]} 32... Kc3 {[%clk 0:01:51.8]} 33. e5 {[%clk 0:01:08.6]}
33... fxe5 {[%clk 0:01:51.6]} 34. Rxf1 {[%clk 0:01:08]} 34... exd4+ {[%clk
0:01:52]} 35. Ke4 {[%clk 0:01:07]} 35... Re6+ {[%clk 0:01:50.3]} 36. Kd5 {[%clk
0:01:07]} 36... Re2 {[%clk 0:01:50.4]} 37. Nf3 {[%clk 0:00:25.8]} 37... Rxg2
{[%clk 0:01:44.4]} 38. Nxd4 {[%clk 0:00:22.3]} 38... Rxa2 {[%clk 0:01:41.4]} 39.
Rf3+ {[%clk 0:00:20.9]} 39... Kb4 {[%clk 0:01:40.8]} 40. Rb3+ {[%clk 0:00:18.3]}
40... Ka4 {[%clk 0:01:38]} 41. Rg3 {[%clk 0:00:12.6]} 41... Rh2 {[%clk 0:01:37]}
42. Nf3 {[%clk 0:00:07.7]} 42... Rh1 {[%clk 0:01:35.1]} 43. Nxg5 {[%clk
0:00:06]} 43... Kb4 {[%clk 0:01:35.3]} 44. Nf3 {[%clk 0:00:02.5]} 44... a5
{[%clk 0:01:34.9]} 45. Nd4 {[%clk 0:00:02.3]} 45... a4 {[%clk 0:01:33.9]} 46.
Nc6+ {[%clk 0:00:02.9]} 46... Kb5 {[%clk 0:01:32.5]} 47. Nd4+ {[%clk 0:00:03.2]}
47... Kb4 {[%clk 0:01:32.7]} 48. Rd3 {[%clk 0:00:02.3]} 48... Rc1 {[%clk
0:01:27.2]} 49. Nc6+ {[%clk 0:00:01.7]} 49... Kb5 {[%clk 0:01:26.6]} 50. Nd4+
{[%clk 0:00:02.2]} 50... Kb4 {[%clk 0:01:26.9]} 51. h4 {[%clk 0:00:03.1]} 51...
a3 {[%clk 0:01:23.3]} 52. Nc6+ {[%clk 0:00:02.2]} 52... Ka4 {[%clk 0:01:23.7]}
53. Rd4+ {[%clk 0:00:01.9]} 53... Kb3 {[%clk 0:01:23.3]} 54. Rb4+ {[%clk
0:00:02.4]} 54... Kc3 {[%clk 0:01:22.1]} 55. Rc4+ {[%clk 0:00:02.9]} 55... Kb2
{[%clk 0:01:22]} 56. Rxc1 {[%clk 0:00:03.7]} 56... Kxc1 {[%clk 0:01:22.8]} 57.
Nb4 {[%clk 0:00:04.2]} 57... Kd2 {[%clk 0:01:22]} 58. h5 {[%clk 0:00:04.3]}
58... Ke3 {[%clk 0:01:22.7]} 59. h6 {[%clk 0:00:04.3]} 59... Kf4 {[%clk
0:01:23.4]} 60. h7 {[%clk 0:00:04.7]} 1-0